bitfinex/quotes_ETHUSD_20250214
["timestamp","ask_amount","ask_price","bid_price","bid_amount"]
[1739568574884,4.4707,2725.1,2724.7,3.67003]
[1739568575088,4.51657498,2725.1,2724.7,3.67003]
[1739568576146,3.66982,2725.0,2724.5,3.6703]
[1739568576347,4.4707,2725.1,2724.6,4.03719]
[1739568576548,8.1404,2725.1,2724.6,4.03719]
[1739568576799,3.66975,2725.0,2724.6,4.03719]
[1739568577198,4.4707,2725.1,2724.3,0.8032]
[1739568577199,0.8011,2725.1,2724.3,0.8032]
[1739568577379,0.8011,2725.0,2724.3,3.67059]
[1739568577551,3.66999,2724.9,2724.3,3.67059]
[1739568577751,3.66999,2724.9,2724.4,3.67053]
[1739568579658,4.47083,2725.0,2724.5,3.67027]
[1739568580188,3.66991,2724.9,2724.5,3.67027]
[1739568581887,3.66991,2724.9,2724.3,3.67055]
[1739568581888,3.67007,2724.8,2724.3,3.67055]
[1739568582086,3.67007,2724.8,2724.3,8.0201]
[1739568582462,0.04587892,2724.9,2724.4,3.67043]
[1739568582663,3.66999,2724.8,2724.4,3.67043]
[1739568583099,4.4709,2725.0,2724.4,3.67043]
[1739568583403,3.66991,2724.9,2724.4,3.67047]
[1739568585421,3.66985,2724.9,2724.4,3.67047]
[1739568585719,3.71589893,2724.8,2724.4,3.67047]
[1739568586886,3.71589893,2724.8,2724.3,4.34954]
[1739568587336,3.71589893,2724.8,2724.4,3.67052]
[1739568587498,3.67002,2724.8,2724.4,3.67052]
[1739568590528,3.67002,2724.8,2724.3,4.34954]
[1739568590836,7.34012,2724.8,2724.3,3.67058]
[1739568590998,3.67033,2724.6,2724.1,3.67091]
[1739568591391,0.04588224,2724.5,2724.1,3.67091]
[1739568592110,0.04588224,2724.6,2724.2,3.6708]
[1739568592305,4.44179,2724.7,2724.2,3.6708]
[1739568592511,3.71616221,2724.6,2724.2,3.6708]
[1739568592711,3.71616221,2724.6,2724.0,4.47417]
[1739568593052,3.71616221,2724.6,2724.1,3.67086]
[1739568593246,3.67047,2724.5,2724.0,4.430292]
[1739568593435,3.67047,2724.5,2724.0,8.101302]
[1739568593611,3.67047,2724.5,2724.1,3.67091]
[1739568593813,3.67047,2724.5,2724.0,4.430282]
[1739568594039,0.8048,2724.3,2724.0,4.430282]
[1739568594547,0.8048,2724.3,2724.0,0.759322]
[1739568594750,0.8048,2724.3,2724.0,4.430312]
[1739568594951,0.0064,2724.3,2724.1,0.49542646]
[1739568595158,0.0064,2724.3,2724.0,4.430312]
[1739568596557,0.0064,2724.3,2724.1,3.67085]
[1739568596933,3.67047,2724.5,2724.1,3.67085]
[1739568597132,3.67047,2724.5,2724.0,0.759322]
[1739568597432,3.67055,2724.4,2724.0,4.430302]
[1739568597759,3.67047,2724.5,2724.0,4.430302]
[1739568597921,0.8048,2724.4,2724.0,4.430302]
[1739568598757,0.8048,2724.4,2724.1,3.6709]
[1739568600003,0.8048,2724.7,2724.4,3.67047]
[1739568600204,0.28,2725.2,2724.2,4.4355]
[1739568600205,0.8048,2724.9,2724.2,3.88375]
[1739568600513,0.18438268,2725.4,2724.2,3.88375]
[1739568600514,0.98918268,2725.4,2725.0,3.6696]
[1739568600663,0.98918268,2725.4,2724.9,3.66977]
[1739568600868,0.04587034,2725.3,2724.6,4.43495]
[1739568601111,3.67037,2724.6,2724.1,3.67084]
[1739568601409,3.67079,2724.3,2723.7,3.67136]
[1739568601703,3.71667737,2724.3,2723.8,3.67131]
[1739568601910,1.0848,2724.5,2724.1,3.67086]
[1739568602467,0.8048,2724.5,2724.1,3.67086]
[1739568602804,0.8048,2724.5,2724.1,3.67085]
[1739568603322,0.8048,2724.5,2724.0,0.7647]
[1739568603828,4.47521,2724.5,2724.0,4.43568]
[1739568604229,0.8048,2724.5,2724.0,4.43568]
[1739568604530,0.8048,2724.5,2724.0,0.7647]
[1739568604717,0.28,2724.8,2724.3,3.67053]
[1739568605019,0.8048,2725.0,2724.5,0.7647]
[1739568605220,0.8048,2725.3,2724.9,3.66979]
[1739568605420,0.8048,2725.3,2724.5,3.88375]
[1739568605421,3.66945,2725.2,2724.7,3.67002]
[1739568605727,3.71532177,2725.2,2724.7,3.67002]
[1739568605933,3.71532177,2725.2,2724.6,3.67026]
[1739568606109,3.71532177,2725.2,2724.7,3.67001]
[1739568606509,4.47412,2725.3,2724.8,3.66997]
[1739568606712,7.21867,2725.8,2724.8,3.66997]
[1739568606713,4.7539,2725.5,2724.9,0.7647]
[1739568607598,1.0848,2725.5,2724.9,0.7647]
[1739568607947,3.66947,2725.2,2724.7,0.8225]
[1739568608094,3.66947,2725.2,2724.6,3.67016]
[1739568608095,4.44217,2725.1,2724.6,3.67016]
[1739568608291,3.67,2724.8,2724.2,3.67071]
[1739568608520,0.7725,2724.7,2724.2,3.67071]
[1739568608719,4.44271,2724.7,2724.0,3.67097]
[1739568608937,4.48858908,2724.7,2724.0,3.67097]
[1739568609139,3.67034,2724.6,2724.1,3.67085]
[1739568609501,0.7725,2724.7,2724.1,1.046087]
[1739568609693,0.7725,2724.7,2724.3,3.67066]
[1739568610140,0.7725,2725.0,2724.3,0.8225]
[1739568610511,1.0525,2725.3,2724.7,3.67008]
[1739568610713,4.4419,2725.3,2724.8,3.66997]
[1739568611198,4.4419,2725.3,2724.9,3.66985]
[1739568611397,0.7725,2725.3,2725.0,3.66972]
[1739568611600,0.28,2725.5,2725.0,3.66964]
[1739568611831,0.28,2725.5,2724.9,7.33962]
[1739568612040,3.94912,2725.5,2724.9,8.155832]
[1739568612299,3.66921,2725.4,2724.9,4.485982]
[1739568612518,3.66921,2725.4,2724.9,8.155732]
[1739568612823,3.66921,2725.4,2724.9,4.485962]
[1739568613428,3.66921,2725.4,2724.9,3.66975]
[1739568614006,0.28,2725.5,2724.9,3.66975]
[1739568614359,3.94905,2725.5,2725.0,3.66964]
[1739568614517,0.28,2725.5,2725.0,3.66964]
[1739568614717,3.66919,2725.4,2725.0,3.66964]
[1739568615042,0.28,2725.5,2725.1,3.66956]
[1739568615544,3.94911,2725.5,2724.9,3.66975]
[1739568615903,3.94911,2725.5,2725.0,3.66966]
[1739568617943,0.7725,2725.8,2725.5,3.66899]
[1739568618147,5.813,2725.9,2725.7,3.66869]
[1739568618363,5.813,2725.9,2725.8,3.66864]
[1739568619765,5.813,2725.9,2725.7,4.858129]
[1739568619922,5.813,2725.9,2725.8,3.66864]
[1739568620123,0.7725,2726.2,2725.8,3.66864]
[1739568620469,4.44064,2726.2,2725.7,4.49126]
[1739568620649,3.66873,2725.8,2725.3,3.66924]
[1739568620850,3.66897,2725.6,2725.1,6.78857]
[1739568621367,3.66897,2725.6,2725.1,3.66952]
[1739568621668,3.66897,2725.6,2725.1,3.6695]
[1739568622163,0.8177,2726.2,2725.4,3.11905]
[1739568622469,9.87541,2726.5,2726.0,3.66829]
[1739568622761,3.66785,2726.4,2726.0,0.8283]
[1739568622963,4.48547,2726.5,2725.9,3.66851]
[1739568623163,4.48543,2726.5,2726.0,3.6683]
[1739568623339,3.6679,2726.4,2725.9,3.66851]
[1739568623725,0.8177,2726.5,2726.0,3.66826]
[1739568624028,0.794,2726.8,2726.3,3.66797]
[1739568624371,3.66744,2726.7,2726.3,3.66797]
[1739568624539,3.66744,2726.7,2726.2,4.4964]
[1739568624872,3.66759,2726.6,2726.2,4.4964]
[1739568625769,3.6679,2726.4,2726.0,0.8283]
[1739568625975,3.6679,2726.4,2726.0,4.49666]
[1739568626183,3.66771,2726.5,2726.0,4.946326]
[1739568626353,3.94711,2727.0,2726.3,3.11905]
[1739568626553,3.94711,2727.0,2726.4,3.66775]
[1739568626738,3.66721,2726.9,2726.4,3.66775]
[1739568627379,0.794,2726.6,2726.0,8.065276]
[1739568627676,3.66729,2726.9,2726.2,3.66808]
[1739568627982,3.66717,2726.9,2726.4,3.66783]
[1739568628176,0.794,2727.0,2726.6,3.66751]
[1739568628377,4.46105,2727.0,2726.5,4.49593]
[1739568628584,4.46105,2727.0,2726.5,5.257428]
[1739568628888,4.46105,2727.0,2726.5,5.257418]
[1739568629555,4.46105,2727.0,2726.5,1.589798]
[1739568629767,0.04584108,2726.9,2726.3,3.66787]
[1739568630082,3.66736,2726.8,2726.2,4.49636]
[1739568630390,3.66751,2726.7,2726.2,4.49636]
[1739568630549,3.66773,2726.5,2726.1,0.8065276]
[1739568630745,4.4617,2726.5,2726.1,3.66822]
[1739568630957,4.4617,2726.5,2726.0,3.6683]
[1739568631158,0.794,2726.5,2726.0,3.6683]
[1739568631459,4.46176,2726.5,2726.0,3.6683]
[1739568631687,4.46176,2726.5,2726.1,4.03506]
[1739568631995,0.794,2726.5,2725.9,3.66851]
[1739568632386,4.46171,2726.5,2725.9,3.66851]
[1739568632694,4.46171,2726.5,2726.0,3.66836]
[1739568633101,8.12953,2726.5,2726.0,3.66836]
[1739568633261,8.12953,2726.5,2726.0,4.118026]
[1739568633598,3.66786,2726.4,2726.0,0.449666]
[1739568634160,0.794,2726.5,2726.0,4.117956]
[1739568634358,0.794,2726.5,2726.1,3.66821]
[1739568634562,8.12878,2726.8,2726.2,3.66799]
[1739568634799,0.794,2727.0,2726.3,0.73362]
[1739568635098,3.66717,2726.9,2726.4,3.66777]
[1739568637406,7.33446,2726.9,2726.4,3.66777]
[1739568637559,3.66731,2726.8,2726.4,3.66777]
[1739568637894,3.66717,2726.9,2726.4,3.66777]
[1739568638404,0.794,2727.0,2726.3,3.11905]
[1739568638561,0.794,2727.0,2726.7,3.66736]
[1739568638761,3.94679,2727.2,2726.7,4.44986]
[1739568638961,3.66679,2727.2,2726.7,4.44986]
[1739568639397,0.7675,2727.3,2726.5,0.7825]
[1739568639701,3.6671,2727.0,2726.5,4.45019]
[1739568639896,0.8133411,2727.3,2726.5,4.45019]
[1739568640099,3.66708,2727.0,2726.5,4.45019]
[1739568640991,0.0458411,2726.9,2726.6,3.66756]
[1739568641191,0.7675,2727.3,2726.7,0.7825]
[1739568641489,5.812,2727.4,2726.9,3.66714]
[1739568641661,5.812,2727.4,2727.0,3.66702]
[1739568642264,0.7638,2727.8,2727.5,3.66629]
[1739568642463,0.7638,2727.8,2727.6,3.6661]
[1739568642701,1.0438,2728.3,2727.9,3.66577]
[1739568642902,1.0438,2728.3,2727.9,3.66571]
[1739568643199,4.70915,2728.3,2727.8,3.66595]
[1739568643908,1.0438,2728.3,2728.0,3.66561]
[1739568644205,0.7638,2728.3,2728.0,3.66561]
[1739568644387,0.005,2728.4,2728.0,3.66561]
[1739568644777,0.005,2728.4,2728.0,7.33122]
[1739568645289,0.005,2728.4,2728.2,3.66539]
[1739568645604,0.005,2728.4,2728.3,0.366539]
[1739568646864,0.005,2728.4,2728.3,4.789519]
[1739568647063,0.005,2728.4,2728.3,4.42298]
[1739568655679,0.005,2728.4,2728.3,5.16546608]
[1739568658321,0.005,2728.4,2728.3,3.66528]
[1739568658506,0.005,2728.4,2728.1,3.11905]
[1739568658706,0.005,2728.4,2728.1,0.75061523]
[1739568658906,0.005,2728.4,2728.0,3.66565]
[1739568660647,0.005,2728.4,2728.0,3.66562]
[1739568661148,0.005,2728.4,2728.1,3.66548]
[1739568661350,0.005,2728.4,2728.0,3.66561]
[1739568661645,3.66559,2728.1,2727.6,3.66613]
[1739568661834,7.33126,2728.1,2727.6,4.786431]
[1739568662003,3.66559,2728.1,2727.6,4.786431]
[1739568662657,0.7926,2728.2,2727.8,3.66584]
[1739568662814,0.7976,2728.4,2727.9,0.7514]
[1739568663015,0.7976,2728.4,2728.1,7.33096]
[1739568663257,0.005,2728.4,2728.1,7.33096]
[1739568663475,0.005,2728.4,2728.2,3.66538]
[1739568663658,0.005,2728.4,2728.2,3.66541]
[1739568663830,0.005,2728.4,2728.1,6.78453]
[1739568664328,0.005,2728.4,2728.0,0.387045]
[1739568664531,0.005,2728.4,2727.7,3.66604]
[1739568664532,3.66543,2728.2,2727.7,3.66598]
[1739568665134,7.33094,2728.2,2727.7,3.66598]
[1739568665455,3.66543,2728.2,2727.7,3.66598]
[1739568665656,7.33095,2728.2,2727.7,3.66598]
[1739568665866,3.66581,2728.0,2727.5,6.78532]
[1739568666072,0.7926,2727.9,2727.5,7.905657]
[1739568667173,0.7926,2727.9,2727.5,11.571947]
[1739568667381,0.7926,2727.9,2727.5,4.239377]
[1739568667580,0.7926,2727.9,2727.6,3.66622]
[1739568667883,0.7926,2727.9,2727.6,3.66612]
[1739568668090,0.7926,2727.9,2727.6,4.8233087]
[1739568668391,0.8194,2728.1,2727.9,3.66579]
[1739568668546,0.8194,2728.1,2728.0,3.66568]
[1739568668747,0.005,2728.4,2728.2,3.66529]
[1739568668991,0.005,2728.4,2728.3,4.398362]
[1739568670390,0.005,2728.4,2728.3,5.154362]
[1739568673049,1e-05,2728.4,2728.3,5.154362]
[1739568673756,1e-05,2728.4,2728.3,8.154362]
[1739568673997,0.8194,2729.7,2728.4,3.0]
[1739568674155,0.8194,2730.4,2729.4,3.11905]
[1739568674356,3.6626,2730.3,2729.7,3.11905]
[1739568674555,3.6626,2730.3,2729.7,6.78237]
[1739568675132,3.6626,2730.3,2729.7,10.44569]
[1739568675294,3.6626,2730.3,2729.8,3.66327]
[1739568675832,3.66262,2730.3,2729.7,6.78237]
[1739568676031,3.66262,2730.3,2729.8,3.66326]
[1739568676538,3.66262,2730.3,2729.7,6.78237]
[1739568676892,3.66262,2730.3,2729.7,3.11905]
[1739568677237,3.66262,2730.3,2729.5,3.66363]
[1739568677238,0.8194,2730.0,2729.4,3.11905]
[1739568677532,0.8194,2730.0,2729.5,3.6636]
[1739568677741,3.66314,2729.9,2729.4,3.11905]
[1739568677942,7.32638,2729.9,2729.4,3.11905]
[1739568678093,3.66328,2729.8,2729.4,3.11905]
[1739568678430,3.66341,2729.7,2729.4,3.11905]
[1739568678650,3.66398,2729.3,2728.8,3.11905]
[1739568678856,3.66398,2729.3,2728.5,0.7283082]
[1739568678857,0.8194,2730.9,2729.5,3.66354]
[1739568679056,3.66153,2731.1,2730.5,3.11905]
[1739568679407,0.8194,2731.2,2730.5,3.11905]
[1739568679721,0.8194,2731.2,2730.8,3.11905]
[1739568679921,4.48079,2731.2,2730.8,3.11905]
[1739568680143,3.66139,2731.2,2730.8,3.11905]
[1739568680323,0.1475313,2731.4,2730.8,3.11905]
[1739568680521,0.04843611,2731.3,2730.8,3.11905]
[1739568680741,3.66175,2731.0,2730.5,3.11905]
[1739568680954,3.70204964,2730.9,2730.5,3.11905]
[1739568681110,0.04021964,2730.9,2730.5,3.11905]
[1739568681315,4.48083,2731.2,2730.5,6.78135]
[1739568681543,0.04834984,2731.1,2730.5,6.78135]
[1739568681742,0.04834984,2731.1,2730.7,3.66205]
[1739568681915,3.70989984,2731.1,2730.5,7.55358387]
[1739568682547,3.66167,2731.0,2730.5,3.89128387]
[1739568682955,0.04826356,2730.9,2730.5,3.89128387]
[1739568683163,0.04826356,2730.9,2730.7,3.66197]
[1739568683358,0.04826356,2730.9,2730.6,3.66216]
[1739568683508,3.8086713,2731.4,2730.6,3.66207]
[1739568683708,0.03735104,2731.3,2731.0,3.66156]
[1739568683916,0.03735104,2731.3,2731.2,3.66139]
[1739568684434,0.1475313,2731.4,2731.1,3.89128387]
[1739568684637,0.1475313,2731.4,2730.8,0.7913]
[1739568684638,0.1475313,2731.4,2731.2,3.89128387]
[1739568684836,0.1475313,2731.4,2731.3,7.45256]
[1739568685038,0.1475313,2731.4,2731.3,8.97307539]
[1739568685240,0.1475313,2731.4,2731.3,8.18177539]
[1739568685410,0.1475313,2731.4,2731.3,8.97307539]
[1739568685616,0.1475313,2731.4,2731.3,2.31181539]
[1739568685857,0.1475313,2731.4,2731.2,7.55257387]
[1739568686428,0.1475313,2731.4,2731.3,3.66126]
[1739568687356,0.1475313,2731.4,2731.2,7.55257387]
[1739568687523,0.1475313,2731.4,2731.2,3.89128387]
[1739568687723,0.1475313,2731.4,2731.3,3.66126]
[1739568687968,0.1475313,2731.4,2731.3,4.78264839]
[1739568689267,0.1475313,2731.4,2731.3,8.57394839]
[1739568690153,1.3e-06,2731.4,2731.3,13.01523226]
[1739568690353,1.3e-06,2731.4,2731.3,13.74872786]
[1739568690878,0.7805,2732.7,2732.3,3.65986]
[1739568691373,3.65898,2733.0,2732.5,3.6596]
[1739568691374,4.43948,2733.0,2732.5,3.6596]
[1739568691540,4.43948,2733.0,2732.4,3.65977]
[1739568692143,0.7805,2733.0,2732.1,3.66013]
[1739568692378,3.65962,2732.6,2731.9,7.55162387]
[1739568692779,3.65939,2732.7,2732.1,7.32018]
[1739568693073,3.65932,2732.8,2732.1,3.66009]
[1739568693278,3.65932,2732.8,2731.9,7.55167387]
[1739568693279,3.65972,2732.5,2731.9,3.66039]
[1739568693487,4.44033,2732.4,2731.9,3.66039]
[1739568693703,4.44033,2732.4,2731.8,3.66057]
[1739568693907,0.7805,2732.4,2732.2,3.65995]
[1739568694109,0.7805,2732.7,2732.2,3.66003]
[1739568694290,0.7805,2732.7,2732.3,3.65989]
[1739568694490,0.7805,2732.7,2732.2,3.66003]
[1739568694660,0.005,2733.4,2732.5,3.89128387]
[1739568694866,0.1475313,2734.1,2733.9,3.65777]
[1739568695077,0.1475313,2734.1,2733.9,7.54895387]
[1739568695611,0.1475313,2734.1,2733.7,3.658]
[1739568695763,0.1475313,2734.1,2733.5,0.71617298]
[1739568695764,3.65774,2734.0,2733.5,3.89128387]
[1739568695963,0.04572071,2733.9,2733.5,3.89128387]
[1739568696407,3.65774,2734.0,2733.5,3.89128387]
[1739568696567,0.04572657,2733.9,2733.3,3.65846]
[1739568696903,0.7805,2733.8,2733.4,3.65838]
[1739568697212,3.70381705,2733.7,2733.0,3.65887]
[1739568697445,3.70381705,2733.7,2732.9,7.55037387]
[1739568697446,3.65819,2733.6,2732.9,7.55037387]
[1739568697582,3.65845,2733.4,2732.9,3.89128387]
[1739568697781,3.70418627,2733.4,2732.9,3.89128387]
[1739568698097,4.43402,2733.5,2732.9,3.89128387]
[1739568698407,0.04573625,2733.4,2732.9,3.89128387]
[1739568698597,0.7757,2733.2,2732.6,7.55076387]
[1739568698809,0.04573944,2733.1,2732.6,7.55076387]
[1739568699103,3.70466944,2733.1,2732.4,3.65968]
[1739568699409,0.7757,2732.9,2732.3,3.89128387]
[1739568699611,0.7757,2732.9,2732.4,3.65966]
[1739568699794,0.04574439,2732.8,2732.0,7.55149387]
[1739568700109,0.7757,2732.5,2732.0,7.55149387]
[1739568700293,0.82144924,2732.5,2732.0,7.55149387]
[1739568700493,0.7757,2732.5,2732.0,3.89128387]
[1739568700695,0.55,2732.4,2731.7,3.89128387]
[1739568700895,3.94405,2732.3,2731.7,3.89128387]
[1739568701063,0.7757,2732.2,2731.7,3.89128387]
[1739568701268,4.43578,2732.2,2731.7,3.89128387]
[1739568701872,0.55,2732.0,2731.4,3.89128387]
[1739568702065,4.43629,2731.8,2731.4,3.89128387]
[1739568702284,4.43629,2731.8,2731.1,3.89128387]
[1739568702285,0.7757,2731.8,2731.1,3.89128387]
[1739568702484,3.04576461,2732.1,2731.0,3.66161]
[1739568702816,3.66126,2731.3,2730.8,3.89128387]
[1739568702962,0.7757,2731.4,2730.8,3.89128387]
[1739568703167,0.7757,2731.4,2731.1,7.55267387]
[1739568703394,0.7757,2731.4,2731.2,3.66138]
[1739568703792,0.7757,2731.4,2731.1,3.89128387]
[1739568704598,0.7757,2731.4,2730.8,3.89128387]
[1739568704798,3.66154,2731.1,2730.8,3.89128387]
[1739568705036,3.66154,2731.1,2730.5,3.66227]
[1739568705243,3.7757,2731.4,2730.8,3.66182]
[1739568705443,1.0627,2731.7,2730.5,3.89128387]
[1739568705643,1.0627,2731.7,2731.2,3.66137]
[1739568705952,3.66107,2731.5,2730.8,3.66187]
[1739568706158,3.6612,2731.4,2730.8,3.66187]
[1739568706363,3.66107,2731.5,2730.9,3.66167]
[1739568706927,0.55,2731.6,2731.1,3.66149]
[1739568706928,3.0,2731.6,2731.1,3.66149]
[1739568707177,3.65938,2732.7,2731.9,3.66034]
[1739568707330,3.65938,2732.7,2731.5,3.89128387]
[1739568707331,0.7757,2732.8,2732.1,3.66014]
[1739568707669,0.7757,2733.7,2733.0,3.65884]
[1739568708131,3.65826,2733.6,2733.0,3.65884]
[1739568708472,0.55,2733.5,2732.8,3.65914]
[1739568708993,0.1475313,2734.1,2733.1,3.89128387]
[1739568709289,0.1475313,2734.1,2733.0,0.8306]
[1739568709290,0.1475313,2734.1,2734.0,3.65764]
[1739568709443,0.1475313,2734.1,2734.0,4.48824]
[1739568710883,0.1475313,2734.1,2734.0,3.65764]
[1739568711246,1.3e-06,2734.1,2734.0,3.65764]
[1739568715098,1.3e-06,2734.1,2734.0,4.41524]
[1739568715311,1.3e-06,2734.1,2734.0,7.96524]
[1739568715590,1.3e-06,2734.1,2734.0,7.41524]
[1739568716282,10.17295015,2736.6,2735.0,0.7576]
[1739568716283,5.797,2736.6,2735.0,0.7576]
[1739568716456,3.65493,2736.1,2735.3,3.6558]
[1739568716655,3.65493,2736.1,2735.2,3.65598]
[1739568716656,3.65512,2735.9,2735.2,3.65598]
[1739568716886,3.65512,2735.9,2735.0,3.65627]
[1739568716887,3.65545,2735.7,2735.0,3.65627]
[1739568717066,1.3042,2735.6,2734.8,3.65654]
[1739568717251,0.7542,2735.6,2735.0,3.65628]
[1739568717698,4.40972,2735.6,2735.0,3.65628]
[1739568717993,3.65564,2735.5,2734.8,3.65654]
[1739568718153,4.40972,2735.6,2734.9,3.65642]
[1739568718355,4.40972,2735.6,2734.4,3.65703]
[1739568718356,3.65467,2736.3,2734.7,0.7576]
[1739568718552,3.65466,2736.3,2735.5,3.65554]
[1739568718799,3.65443,2736.4,2735.3,3.65582]
[1739568719093,0.7542,2735.9,2735.3,3.65582]
[1739568719300,3.65455,2736.4,2735.1,3.65617]
[1739568719451,3.65461,2736.3,2735.7,3.65534]
[1739568720082,7.40854,2736.5,2735.9,3.65507]
[1739568720265,0.7542,2736.5,2735.9,3.655]
[1739568720467,0.7542,2736.5,2735.7,3.65531]
[1739568720683,3.65493,2736.1,2735.4,3.65567]
[1739568721158,3.65465,2736.3,2734.7,0.7576]
[1739568721356,3.65491,2736.1,2735.4,3.65564]
[1739568721558,3.65491,2736.1,2735.4,7.31133]
[1739568721993,3.65491,2736.1,2735.5,3.65562]
[1739568722150,3.65491,2736.1,2735.4,3.65564]
[1739568722151,3.65537,2735.7,2735.0,3.65624]
[1739568722356,3.6556,2735.6,2735.0,3.65624]
[1739568722556,3.65594,2735.3,2734.5,3.65688]
[1739568723001,0.7901,2735.5,2734.5,3.65688]
[1739568723002,3.6562,2735.1,2734.5,3.65688]
[1739568723501,7.31249,2735.1,2734.5,3.65688]
[1739568723811,3.65635,2735.0,2734.5,3.65688]
[1739568724011,0.7901,2734.9,2734.4,3.65706]
[1739568724171,4.44654,2734.9,2734.4,3.65706]
[1739568724367,4.44654,2734.9,2734.1,3.65743]
[1739568724596,4.19654,2734.9,2734.3,3.65722]
[1739568724771,3.6566,2734.8,2734.2,3.65734]
[1739568724972,7.85307,2734.9,2734.3,3.65717]
[1739568725175,4.19654,2734.9,2734.3,3.65717]
[1739568725672,0.5401,2734.9,2733.7,0.8189]
[1739568725877,0.5401,2734.9,2734.4,3.65699]
[1739568726073,0.5401,2734.9,2733.9,3.65777]
[1739568726301,0.5401,2734.9,2734.5,3.65695]
[1739568726874,4.19656,2734.9,2734.3,3.65718]
[1739568727084,3.65665,2734.8,2734.3,3.65722]
[1739568727818,4.19657,2734.9,2734.3,3.65722]
[1739568728026,0.18501454,2735.4,2734.4,0.7762]
[1739568728375,0.7632,2735.1,2734.6,3.65681]
[1739568728576,3.65631,2735.0,2734.4,3.6571]
[1739568729402,3.65631,2735.0,2734.4,3.65703]
[1739568730180,3.65649,2734.9,2734.4,3.65703]
[1739568730395,7.31271,2735.0,2734.4,3.65703]
[1739568730780,3.65656,2734.9,2734.2,3.65727]
[1739568731008,3.65656,2734.9,2734.3,3.65717]
[1739568731421,0.7632,2735.1,2734.4,3.65703]
[1739568731626,3.65637,2735.0,2734.4,3.65703]
[1739568731926,3.65637,2735.0,2734.4,7.31405]
[1739568732094,7.31277,2735.0,2734.4,3.65702]
[1739568733032,4.41944,2735.1,2734.5,3.6569]
[1739568733177,3.65644,2735.0,2734.4,3.65702]
[1739568733519,3.65651,2734.9,2734.4,3.65702]
[1739568733721,3.65644,2735.0,2734.4,3.65702]
[1739568733930,3.65657,2734.8,2734.4,3.65702]
[1739568734619,7.31325,2734.8,2734.2,3.65727]
[1739568734785,3.65657,2734.8,2734.2,3.65727]
[1739568734987,3.65672,2734.7,2734.2,3.65727]
[1739568735394,0.7632,2735.1,2734.0,8.31489323]
[1739568735721,3.65679,2734.7,2734.0,4.43374]
[1739568735933,7.31358,2734.7,2734.1,3.65751]
[1739568736423,3.65685,2734.6,2734.1,3.65751]
[1739568736582,3.65694,2734.6,2734.1,3.6575]
[1739568737485,3.65674,2734.7,2734.2,3.65736]
[1739568738293,3.65652,2734.9,2734.2,3.65736]
[1739568738294,3.65685,2734.6,2734.2,3.65736]
[1739568739026,0.7632,2734.5,2734.1,3.6575]
[1739568740419,0.7632,2734.5,2733.9,8.18636727]
[1739568740722,3.65711,2734.4,2734.0,4.11050873]
[1739568741128,0.80891276,2734.5,2733.7,0.7762]
[1739568741335,3.65748,2734.2,2733.7,3.65797]
[1739568741631,3.65818,2733.6,2732.8,4.63265323]
[1739568741825,3.65804,2733.7,2733.1,3.65878]
[1739568742011,3.65825,2733.6,2733.0,3.65886]
[1739568742326,3.65825,2733.6,2733.1,3.65884]
[1739568742556,3.65825,2733.6,2733.2,0.73177]
[1739568742697,3.65814,2733.7,2733.2,4.39044]
[1739568743105,7.31648,2733.6,2733.2,0.73177]
[1739568743300,3.65819,2733.6,2733.0,3.65886]
[1739568743505,3.65819,2733.6,2733.1,3.65884]
[1739568743703,0.7687,2733.5,2732.9,0.365912]
[1739568743914,0.7687,2733.5,2732.5,3.88115323]
[1739568744097,3.65871,2733.3,2732.7,3.65929]
[1739568744303,0.81443501,2733.5,2732.5,7.54071323]
[1739568744612,3.65926,2732.8,2732.4,0.7885]
[1739568744927,3.65903,2733.0,2732.4,3.65977]
[1739568745104,3.65915,2732.9,2732.2,7.54118323]
[1739568745403,3.65915,2732.9,2732.2,11.20109323]
[1739568745603,3.65915,2732.9,2732.3,1.19895932]
[1739568745803,3.65915,2732.9,2732.3,4.85884932]
[1739568746040,3.65897,2733.1,2732.4,3.6597]
[1739568746249,3.65894,2733.1,2732.4,3.6597]
[1739568746453,3.65918,2732.9,2732.3,1.19895932]
[1739568746743,3.65949,2732.7,2732.2,3.88115323]
[1739568747317,0.7687,2733.2,2732.2,3.88115323]
[1739568747640,3.65861,2733.3,2732.7,0.7885]
[1739568747835,3.65879,2733.2,2732.7,1.62141332]
[1739568748002,3.65893,2733.1,2732.4,3.65976]
[1739568748342,3.65899,2733.0,2732.4,3.65971]
[1739568748500,4.42807,2732.8,2732.0,0.7885]
[1739568748705,0.7687,2732.8,2732.3,3.65984]
[1739568748901,3.65912,2732.9,2732.3,4.391819]
[1739568749097,3.65945,2732.7,2732.3,0.731979]
[1739568749331,3.65929,2732.8,2732.3,4.391889]
[1739568749709,0.7687,2733.1,2732.3,4.391889]
[1739568749710,3.65958,2732.6,2732.3,0.731979]
[1739568749909,3.65967,2732.5,2732.0,0.7885]
[1739568750343,3.65953,2732.6,2732.1,3.66018]
[1739568750533,3.65966,2732.5,2732.0,0.7885]
[1739568750728,7.31888,2732.7,2732.0,1.69335461]
[1739568750946,3.65939,2732.7,2732.1,3.66016]
[1739568751247,7.31885,2732.7,2732.1,3.66011]
[1739568751432,3.65962,2732.6,2732.1,3.66008]
[1739568751632,3.65972,2732.5,2732.0,1.69335461]
[1739568751842,3.65972,2732.5,2732.0,0.7885]
[1739568752147,3.65972,2732.5,2732.0,4.44875]
[1739568752351,3.65947,2732.7,2732.2,3.66002]
[1739568752513,0.95259025,2733.1,2732.0,4.44873]
[1739568752846,7.31898,2732.7,2732.1,3.66009]